bitfinex/quotes_ETHUSD_20241122
["timestamp","ask_amount","ask_price","bid_price","bid_amount"]
[1732297013034,3.03175,3298.5,3297.7,0.0295]
[1732297013188,0.03031326,3298.4,3296.4,0.0295]
[1732297013386,3.36525826,3298.4,3296.6,0.0295]
[1732297013583,0.03031326,3298.4,3296.6,0.0295]
[1732297013818,0.7804,3298.3,3296.6,0.0295]
[1732297014020,0.03031326,3298.2,3296.6,0.0295]
[1732297014229,3.0321,3298.1,3296.6,0.0295]
[1732297014387,0.63975859,3298.0,3296.6,0.0295]
[1732297014587,0.03031326,3298.0,3296.6,0.0295]
[1732297014787,6.41317489,3297.7,3296.6,0.0295]
[1732297015012,0.03031326,3297.6,3296.6,0.0295]
[1732297015402,0.03031326,3298.0,3296.6,0.0295]
[1732297015597,0.33654059,3298.0,3296.6,0.0295]
[1732297016791,0.03031326,3298.0,3296.6,0.0295]
[1732297016991,0.03031326,3298.2,3296.6,0.0295]
[1732297018114,3.06227326,3298.2,3296.6,0.0295]
[1732297018836,5.85492769,3298.2,3296.6,0.0295]
[1732297019016,1.0359885,3298.1,3296.7,0.0295]
[1732297019341,0.03031326,3298.0,3296.7,0.0295]
[1732297019537,1.06630176,3298.1,3296.7,0.0295]
[1732297019837,2.79265443,3298.2,3296.9,0.0295]
[1732297020156,0.03031326,3298.1,3296.9,0.0295]
[1732297020688,0.03031326,3298.1,3297.0,0.0295]
[1732297020892,0.03031326,3298.5,3297.0,0.0295]
[1732297021138,2.79265443,3298.2,3297.0,0.0295]
[1732297021337,3.03223,3297.9,3297.0,0.0295]
[1732297021641,0.03031326,3297.8,3297.0,0.0295]
[1732297021931,3.0328,3297.3,3295.9,0.0295]
[1732297022135,0.03031326,3297.2,3295.9,0.0295]
[1732297022338,3.06319326,3297.2,3295.9,0.0295]
[1732297022839,0.03031326,3297.2,3295.9,0.0295]
[1732297023137,0.30631133,3297.1,3295.9,0.0295]
[1732297023337,0.03031326,3297.4,3295.9,0.0295]
[1732297023699,0.03031326,3297.6,3295.9,0.0295]
[1732297023909,1.01690339,3297.8,3295.9,0.3018]
[1732297023910,0.30624633,3297.8,3295.9,0.3018]
[1732297024098,0.03031326,3298.0,3296.5,0.3018]
[1732297024427,0.03031326,3298.0,3296.7,0.0295]
[1732297024624,0.03031326,3298.3,3296.9,0.0295]
[1732297024796,0.03031326,3298.3,3297.0,0.0295]
[1732297025135,0.7577,3298.6,3297.2,0.0295]
[1732297025340,0.7577,3298.6,3297.4,0.0295]
[1732297025547,0.03031326,3298.5,3297.4,0.0295]
[1732297026234,3.38604686,3298.3,3297.4,0.0295]
[1732297026446,0.03031326,3298.2,3297.4,0.0295]
[1732297027039,3.03206,3298.1,3296.6,0.0295]
[1732297027191,0.03031326,3298.0,3296.9,0.0295]
[1732297029238,3.03224,3297.9,3296.9,0.0295]
[1732297029440,0.33656859,3297.8,3296.9,0.0295]
[1732297029654,0.03031326,3297.8,3296.9,0.0295]
[1732297030058,3.03256,3297.6,3296.9,0.0295]
[1732297030271,0.03031326,3297.5,3296.2,0.0295]
[1732297030471,3.03283,3297.3,3296.2,0.0295]
[1732297030759,0.33359626,3297.2,3296.2,0.0295]
[1732297030965,0.03031326,3297.2,3296.2,0.0295]
[1732297031529,0.03031326,3297.4,3296.2,0.0295]
[1732297031728,3.0325,3297.6,3296.2,0.0295]
[1732297031966,3.03274,3297.4,3296.2,0.0295]
[1732297032159,0.03031326,3297.3,3296.2,0.0295]
[1732297033245,3.0328,3297.3,3296.2,0.0295]
[1732297033561,0.03031326,3297.2,3296.2,0.0295]
[1732297033728,0.30631133,3297.1,3296.2,0.0295]
[1732297033929,0.03031326,3297.0,3296.2,0.0295]
[1732297034766,0.82481326,3297.0,3296.2,0.0295]
[1732297034932,0.82481326,3297.0,3295.8,0.0295]
[1732297035336,0.42108601,3296.9,3295.8,0.0295]
[1732297035574,0.03031326,3296.8,3295.8,0.0295]
[1732297036538,0.03031326,3297.1,3295.8,0.0295]
[1732297036873,3.06328326,3297.1,3295.8,0.0295]
[1732297037174,0.60961733,3297.0,3295.8,0.0295]
[1732297037477,0.03031326,3296.9,3295.8,0.0295]
[1732297037771,3.03335,3296.7,3295.8,0.0295]
[1732297037971,0.03031326,3296.8,3295.8,0.0295]
[1732297038860,0.8204,3297.8,3296.2,3.38604686]
[1732297039047,0.8204,3297.8,3296.4,0.0295]
[1732297039239,0.03031326,3297.7,3296.4,0.0295]
[1732297039438,0.70778738,3297.9,3296.4,0.0295]
[1732297039439,3.03214,3298.0,3296.5,0.0295]
[1732297039774,0.03031326,3297.9,3296.5,0.0295]
[1732297039971,0.03031326,3297.9,3296.7,0.0295]
[1732297040270,0.03031326,3298.3,3296.9,0.0295]
[1732297040477,0.30621333,3298.2,3297.1,0.0295]
[1732297040633,3.77138474,3298.6,3297.2,0.0295]
[1732297040837,0.03031326,3298.5,3297.2,0.0295]
[1732297041072,3.03183,3298.4,3297.2,0.0295]
[1732297041270,0.33652759,3298.3,3297.2,0.0295]
[1732297041773,3.38604686,3298.1,3297.2,0.0295]
[1732297041994,3.03234,3297.8,3295.8,0.0295]
[1732297042137,0.03031326,3297.7,3296.0,0.0295]
[1732297042339,3.03266,3297.5,3296.0,0.0295]
[1732297042594,0.33357926,3297.4,3296.0,0.0295]
[1732297042792,0.03031326,3297.6,3296.2,0.0295]
[1732297043091,0.03031326,3297.8,3296.3,0.0295]
[1732297043299,0.03031326,3297.8,3296.5,0.0295]
[1732297044064,3.0321,3298.1,3296.5,0.0295]
[1732297044065,3.03229,3297.9,3296.5,0.0295]
[1732297044299,0.03031326,3297.8,3296.5,0.0295]
[1732297044503,0.30626033,3297.7,3296.5,0.0295]
[1732297044795,0.03031326,3297.6,3296.5,0.0295]
[1732297045200,0.03031326,3297.7,3296.5,0.0295]
[1732297046267,0.03031326,3297.9,3296.5,0.0295]
[1732297046469,0.40453063,3298.1,3296.5,0.0295]
[1732297047282,0.40453063,3298.1,3296.6,0.0295]
[1732297047480,0.40453063,3298.1,3296.0,3.38604686]
[1732297047481,0.40453063,3298.1,3296.8,0.0295]
[1732297047705,0.34365006,3298.0,3296.8,0.0295]
[1732297047977,0.37396332,3298.0,3296.8,0.0295]
[1732297048209,0.03031326,3298.3,3296.8,0.55]
[1732297048391,0.03031326,3298.3,3296.5,3.55]
[1732297048392,0.03031326,3298.3,3297.1,0.0295]
[1732297048765,3.06223326,3298.3,3297.1,0.0295]
[1732297048967,0.30622333,3298.2,3297.1,0.0295]
[1732297049304,0.03031326,3298.1,3297.1,0.0295]
[1732297050096,0.03031326,3298.4,3297.1,0.0295]
[1732297050295,3.18913838,3298.8,3297.2,0.0295]
[1732297050606,0.03031326,3298.7,3297.2,0.0295]
[1732297050981,3.06180326,3298.7,3297.2,0.0295]
[1732297051205,3.03168,3298.5,3297.2,0.0295]
[1732297051422,0.03031326,3298.4,3297.2,0.0295]
[1732297051770,3.0319,3298.3,3297.2,0.0295]
[1732297051987,0.03031326,3298.2,3297.2,0.0295]
[1732297053012,4.9227643,3298.9,3297.2,0.0295]
[1732297053013,0.03031326,3298.3,3297.2,0.0295]
[1732297053188,3.06218326,3298.3,3297.2,0.0295]
[1732297053383,3.03147,3298.8,3297.2,0.0295]
[1732297053572,0.03031326,3298.7,3297.2,0.0295]
[1732297054171,1.53671744,3298.9,3297.3,0.0295]
[1732297054371,0.03031326,3298.9,3297.7,0.0295]
[1732297054812,0.03031326,3299.0,3298.0,0.0295]
[1732297058220,1.211345,3299.1,3298.0,0.0295]
[1732297058575,0.03031326,3299.2,3298.0,0.0295]
[1732297058841,0.8518,3299.1,3298.0,0.0295]
[1732297058994,0.8518,3299.1,3298.2,0.3018]
[1732297059323,0.03031326,3299.4,3298.3,0.0295]
[1732297059612,0.55,3299.3,3298.3,0.0295]
[1732297059820,0.58031326,3299.3,3298.3,0.0295]
[1732297060021,0.55,3299.3,3298.3,0.0295]
[1732297060312,0.03031326,3299.2,3298.3,0.0295]
[1732297060615,3.03115,3299.1,3298.3,0.0295]
[1732297060778,0.41526959,3299.0,3298.3,0.0295]
[1732297061390,3.03145,3298.8,3298.3,0.0295]
[1732297061700,3.86257,3298.6,3297.0,0.0295]
[1732297062020,0.03031326,3298.5,3297.0,0.0295]
[1732297062185,3.06200326,3298.5,3297.0,0.0295]
[1732297062533,3.06202326,3298.5,3297.0,0.0295]
[1732297062811,3.06205326,3298.5,3297.0,0.0295]
[1732297063013,3.03195,3298.2,3297.0,0.0295]
[1732297063316,0.03031326,3298.1,3297.0,0.0295]
[1732297064179,0.76960457,3298.5,3297.0,0.0295]
[1732297064502,3.03187,3298.3,3297.0,0.0295]
[1732297064698,0.03031326,3298.2,3297.0,0.0295]
[1732297064881,3.03238,3297.8,3297.0,0.0295]
[1732297065093,0.03031326,3297.7,3297.0,0.0295]
[1732297066094,0.03031326,3297.8,3297.0,0.0295]
[1732297066335,0.33354126,3297.8,3297.0,0.0295]
[1732297066781,0.03031326,3297.8,3297.0,0.0295]
[1732297066980,0.03031326,3298.0,3297.0,0.0295]
[1732297068306,3.03214,3298.0,3297.0,0.0295]
[1732297068617,0.03031326,3297.9,3297.0,0.0295]
[1732297069929,3.06217326,3298.3,3297.0,0.0295]
[1732297070117,0.48748059,3298.3,3297.0,0.0295]
[1732297070798,0.48748059,3298.3,3297.0,0.3313]
[1732297071012,3.03201,3298.2,3297.0,0.0295]
[1732297071197,0.03031326,3298.1,3297.0,0.0295]
[1732297071603,0.03031326,3298.2,3297.0,0.0295]
[1732297072437,3.03229,3297.9,3297.0,0.0295]
[1732297072731,3.06264326,3297.8,3297.0,0.0295]
[1732297073103,0.03031326,3297.8,3297.0,0.0295]
[1732297073313,0.03031326,3297.9,3297.0,0.0295]
[1732297073632,0.606429,3297.9,3297.0,0.0295]
[1732297073797,0.03031326,3298.0,3297.0,0.0295]
[1732297075001,3.0319,3298.3,3297.0,0.0295]
[1732297075002,0.03031326,3298.2,3297.0,0.0295]
[1732297075496,3.0321,3298.1,3297.0,0.0295]
[1732297075695,0.33655459,3298.0,3297.0,0.0295]
[1732297076826,3.0323,3297.9,3297.0,0.0295]
[1732297077028,0.03031326,3297.8,3297.0,0.0295]
[1732297077746,0.03031326,3298.0,3297.0,0.0295]
[1732297077918,3.06245326,3298.0,3297.0,0.0295]
[1732297078110,0.30624533,3297.9,3297.0,0.0295]
[1732297078644,0.03031326,3298.0,3297.0,0.0295]
[1732297078799,0.03031326,3297.8,3297.0,0.0295]
[1732297079812,0.03031326,3298.0,3297.0,0.0295]
[1732297080022,3.06250326,3298.0,3297.0,0.0295]
[1732297080328,0.30625033,3297.9,3297.0,0.0295]
[1732297080528,0.03031326,3298.3,3297.0,0.0295]
[1732297080836,3.0316,3298.6,3297.0,0.0295]
[1732297081154,0.03031326,3298.5,3297.2,0.0295]
[1732297081321,0.03031326,3298.5,3297.3,0.3018]
[1732297081322,0.33347326,3298.5,3297.3,0.3018]
[1732297081642,0.03031326,3298.5,3297.4,0.0295]
[1732297081844,3.06201326,3298.5,3297.4,0.0295]
[1732297082043,0.03031326,3298.5,3297.4,0.0295]
[1732297082207,0.30619633,3298.4,3297.4,0.0295]
[1732297082409,0.03031326,3298.3,3297.4,0.0295]
[1732297082707,0.03031326,3298.7,3297.4,0.0295]
[1732297082929,3.06220326,3298.3,3297.4,0.0295]
[1732297083357,3.06220326,3298.3,3297.4,0.3313]
[1732297083554,0.03031326,3298.3,3297.4,0.3313]
[1732297083705,3.03229,3297.9,3297.4,0.0295]
[1732297083940,0.33354226,3297.8,3297.4,0.0295]
[1732297084145,0.03031326,3297.8,3297.4,0.0295]
[1732297084537,3.06265326,3297.8,3297.4,0.0295]
[1732297084743,0.03031326,3297.8,3297.4,0.0295]
[1732297085067,0.03031326,3298.1,3297.4,0.0295]
[1732297085441,3.06240326,3298.1,3297.4,0.0295]
[1732297085649,0.03031326,3298.1,3297.4,0.0295]
[1732297085891,3.03234,3297.8,3297.4,0.0295]
[1732297086064,0.03031326,3297.7,3297.4,0.0295]
[1732297086437,3.36903859,3297.7,3297.4,0.0295]
[1732297086642,3.06278326,3297.7,3297.4,0.0295]
[1732297086861,3.03223,3297.9,3297.4,0.0295]
[1732297087063,0.03031326,3297.8,3297.4,0.0295]
[1732297087267,0.03031326,3297.8,3296.0,3.3018]
[1732297087268,0.03031326,3297.8,3296.1,0.0295]
[1732297087449,2.79249043,3297.7,3296.1,0.0295]
[1732297087685,0.31259363,3297.6,3296.1,0.0295]
[1732297087887,3.34511363,3297.6,3296.1,0.0295]
[1732297088389,3.34511363,3297.6,3296.2,0.0295]
[1732297088541,0.31259363,3297.6,3296.3,0.3018]
[1732297088742,0.31259363,3297.6,3296.4,0.0295]
[1732297088947,0.03031326,3297.6,3296.6,0.0295]
[1732297089180,3.85116,3298.0,3296.6,0.0295]
[1732297089181,3.06254326,3297.9,3296.6,0.0295]
[1732297089748,3.03233,3297.8,3296.6,0.0295]
[1732297090056,0.63980059,3297.7,3296.8,0.0295]
[1732297090283,0.03031326,3297.9,3296.8,0.0295]
[1732297090781,0.03031326,3298.1,3296.9,0.0295]
[1732297090989,0.48533674,3298.1,3296.9,0.0295]
[1732297091494,3.03232,3297.8,3296.9,0.0295]
[1732297091693,0.03031326,3297.7,3296.9,0.0295]
[1732297092569,0.03031326,3297.8,3296.9,0.0295]
[1732297093367,0.03031326,3297.9,3296.9,0.0295]
[1732297093578,3.06254326,3297.9,3296.9,0.0295]
[1732297093779,3.03257,3297.6,3296.9,0.0295]
[1732297093988,0.03031326,3297.5,3296.9,0.0295]
[1732297094195,3.03275,3297.4,3296.9,0.0295]
[1732297094369,3.03275,3297.4,3296.2,0.3018]
[1732297094370,3.06310326,3297.3,3296.3,0.0295]
[1732297094571,0.33358826,3297.3,3296.3,0.0295]
[1732297094755,0.03031326,3297.3,3296.3,0.0295]
[1732297095363,0.03031326,3297.4,3296.3,0.0295]
[1732297095756,3.03235,3297.8,3296.3,0.0295]
[1732297096000,0.03031326,3297.7,3296.3,0.0295]
[1732297096165,3.06279326,3297.7,3296.3,0.0295]
[1732297096362,0.03031326,3297.7,3296.5,0.3018]
[1732297096598,0.03031326,3297.7,3296.6,0.0295]
[1732297096974,0.03031326,3297.9,3296.6,0.0295]
[1732297097365,3.06259326,3297.9,3296.6,0.0295]
[1732297098609,0.03031326,3297.9,3296.7,0.3018]
[1732297098813,0.73598652,3298.0,3296.8,0.0598284]
[1732297099049,0.03031326,3298.2,3296.9,0.0295]
[1732297099251,0.03031326,3298.2,3297.0,0.3018]
[1732297099455,0.03031326,3298.2,3297.1,0.0295]
[1732297100349,3.06199326,3298.5,3297.2,0.0295]
[1732297100551,3.53865594,3298.5,3297.3,0.0295]
[1732297100713,3.53865594,3298.5,3297.5,0.0823899]
[1732297100714,0.50697594,3298.5,3297.5,0.0823899]
[1732297100921,0.03031326,3298.6,3297.6,0.0295]
[1732297101163,2.21874623,3299.3,3297.8,0.0295]
[1732297101325,0.70784983,3299.3,3298.3,3.3018]
[1732297101517,0.70784983,3299.3,3298.4,0.0295]
[1732297101518,0.55,3299.3,3298.4,0.0295]
[1732297102016,0.03031326,3299.2,3298.4,0.0295]
[1732297103045,0.55,3299.3,3298.4,0.05981571]
[1732297103253,0.55,3299.3,3298.5,0.0295]
[1732297103444,0.55,3299.3,3298.6,0.3018]
[1732297103654,0.55,3299.3,3298.7,0.03031152]
[1732297103857,0.55,3299.3,3298.8,0.0295]
[1732297105181,0.03031326,3299.2,3298.8,0.0295]
[1732297106033,0.03031326,3299.2,3297.6,0.0295]
[1732297106230,3.85474,3299.0,3297.7,0.0295]
[1732297106434,3.03146,3298.8,3297.7,0.0295]
[1732297106668,3.85474,3299.0,3297.7,0.0295]
[1732297106669,3.03161,3298.6,3297.7,0.0295]
[1732297106871,0.8235,3299.0,3297.7,0.0295]
[1732297106872,3.0318,3298.4,3297.7,0.0295]
[1732297107178,0.03031326,3298.3,3297.7,0.0295]
[1732297107534,3.06224326,3298.3,3297.7,0.0295]
[1732297107729,6.06418,3298.1,3297.5,0.0823899]
[1732297107959,3.03229,3297.9,3297.5,0.0823899]
[1732297108265,0.03031326,3297.8,3297.5,0.0823899]
[1732297108472,3.4038512,3297.8,3297.5,0.0823899]
[1732297108659,3.03243,3297.7,3297.5,0.0823899]
[1732297108988,0.03031326,3297.6,3297.5,0.0823899]
[1732297109347,0.03031326,3297.7,3297.5,0.0823899]
[1732297109561,3.40013705,3297.7,3297.5,0.0823899]
[1732297109734,0.36765705,3297.7,3297.5,0.0823899]
[1732297110075,3.40007705,3297.7,3297.5,0.0823899]
[1732297110649,0.36765705,3297.7,3297.5,0.0823899]
[1732297110854,3.0325,3297.6,3297.5,0.0823899]
[1732297111651,0.03031326,3297.7,3297.5,0.0823899]
[1732297112251,3.0325,3297.6,3297.5,0.0823899]
[1732297112794,3.7959,3297.6,3297.5,0.0823899]
[1732297114107,3.7959,3297.6,3295.1,0.3018]
[1732297114108,0.0794551,3296.3,3295.3,3.68286611]
[1732297114255,0.0794551,3296.3,3295.4,0.03033696]
[1732297115259,0.0794551,3296.3,3295.8,3.0]
[1732297115460,0.0794551,3296.3,3295.9,0.58033524]
[1732297115682,0.0794551,3296.3,3296.0,0.35803352]
[1732297115994,0.0794551,3296.3,3296.2,3.8518]
[1732297116607,0.0794551,3296.3,3296.2,0.8518]
[1732297116758,0.0794551,3296.3,3296.2,0.88213316]
[1732297117302,0.0794551,3296.3,3296.2,0.8518]
[1732297117879,0.0794551,3296.3,3296.2,3.8518]
[1732297118088,0.0794551,3296.3,3296.2,4.27581667]
[1732297118801,0.0794551,3296.3,3296.2,1.27581667]
[1732297119020,0.0794551,3296.3,3296.2,0.8518]
[1732297119208,0.0794551,3296.3,3296.2,0.55]
[1732297119922,0.0794551,3296.3,3296.0,0.3018]
[1732297119923,0.0794551,3296.3,3296.1,0.55]
[1732297120227,0.0794551,3296.3,3296.2,0.03033353]
[1732297120516,0.0794551,3296.3,3296.1,0.55]
[1732297120695,0.0794551,3296.3,3296.0,3.0]
[1732297120892,0.0794551,3296.3,3296.1,0.66828661]
[1732297121478,0.0794551,3296.3,3295.5,3.38106611]
[1732297121479,0.0794551,3296.3,3295.7,0.55]
[1732297121695,0.0794551,3296.3,3295.9,0.55]
[1732297122223,0.0794551,3296.3,3295.7,0.55]
[1732297122430,0.0794551,3296.3,3296.0,0.03033522]
[1732297122715,0.0794551,3296.3,3295.7,0.55]
[1732297122884,0.0794551,3296.3,3295.9,0.55]
[1732297123285,0.0794551,3296.3,3296.0,0.03033519]
[1732297123905,0.0794551,3296.3,3296.0,0.0303352]
[1732297124329,0.0794551,3296.3,3295.8,0.6568]
[1732297124533,0.0794551,3296.3,3295.8,0.3018]
[1732297124908,0.0794551,3296.3,3295.7,0.3018]
[1732297125831,0.0794551,3296.3,3295.8,0.03033727]
[1732297127032,0.0794551,3296.3,3295.7,0.55]
[1732297127190,0.0794551,3296.3,3295.7,1.24310661]
[1732297127392,0.0794551,3296.3,3295.7,1.27344269]
[1732297127936,0.0794551,3296.3,3295.7,1.24310661]
[1732297128229,0.0794551,3296.3,3295.7,1.2734427]
[1732297130237,0.0794551,3296.3,3295.9,3.0]
[1732297130392,0.0794551,3296.3,3295.7,0.55]
[1732297130594,0.0794551,3296.3,3295.7,3.0]
[1732297130788,0.0794551,3296.3,3295.6,0.55]
[1732297131020,0.0794551,3296.3,3295.3,3.03033855]
[1732297131228,0.03031326,3296.2,3295.2,2.79433245]
[1732297131384,0.03031326,3296.2,3294.8,2.79433245]
[1732297131707,0.03031326,3296.2,3294.9,0.2824671]
[1732297132323,3.06414326,3296.2,3294.8,2.79433245]
[1732297132542,0.7883,3296.1,3294.5,0.0303426]
[1732297132843,0.0794551,3296.3,3294.7,2.79433245]
[1732297133046,0.0794551,3296.3,3295.0,2.79433245]
[1732297133199,0.0794551,3296.3,3295.1,0.03034256]
[1732297133400,0.0794551,3296.3,3295.1,0.58034256]
[1732297133612,0.0794551,3296.3,3295.1,0.51574256]
[1732297133849,0.0794551,3296.3,3295.2,0.3310075]
[1732297134014,0.0794551,3296.3,3295.3,0.01519718]
[1732297134999,0.0794551,3296.3,3295.1,0.01519717]
[1732297135804,0.0794551,3296.3,3295.1,0.56519717]
[1732297136816,0.0794551,3296.3,3295.1,0.56519808]
[1732297137152,0.0794551,3296.3,3295.3,0.55]
[1732297137351,0.0794551,3296.3,3295.2,0.35651981]
[1732297137545,0.0794551,3296.3,3294.3,0.1469167]
[1732297137546,0.79882732,3296.2,3294.6,3.55]
[1732297137729,0.79882732,3296.2,3294.7,0.01520433]
[1732297138046,0.7609,3296.2,3294.7,0.01520433]
[1732297138346,0.7609,3296.2,3294.9,0.55]
[1732297138647,0.7609,3296.2,3295.0,0.01520427]
[1732297140607,0.79883005,3296.2,3294.9,0.55]
[1732297140804,3.03394,3296.1,3295.0,0.3018]
[1732297141128,0.8183,3295.9,3295.0,0.3018]
[1732297141314,0.8183,3295.9,3295.0,0.31700589]
[1732297141846,0.8183,3295.9,3294.8,0.3018]
[1732297142141,0.8183,3295.9,3295.0,0.3018]
[1732297142726,0.331701,3295.8,3295.0,0.3018]
[1732297143046,0.8285,3295.7,3294.4,0.3018]
[1732297143209,0.8285,3295.7,3294.8,0.3018]
[1732297143404,0.8285,3295.7,3294.9,0.01521124]
[1732297143811,0.8285,3295.7,3294.8,0.3018]
[1732297144117,0.8285,3295.7,3294.7,0.55]
[1732297144317,0.8285,3295.7,3294.8,0.3018]
[1732297144844,0.8285,3295.5,3294.8,0.3018]
[1732297145240,0.8285,3295.5,3294.6,0.3018]
[1732297145410,0.7836,3295.1,3294.3,0.1469167]
[1732297145605,0.7836,3294.9,3294.3,0.1469167]
[1732297145846,0.03794351,3294.8,3294.3,0.1469167]
[1732297146051,0.7836,3294.7,3294.3,0.1469167]
[1732297146254,0.03794354,3294.6,3294.3,0.1469167]
[1732297146560,0.7836,3294.5,3294.3,0.1469167]
[1732297147205,0.0379461,3294.4,3294.3,0.1469167]
[1732297147820,0.7836,3294.5,3294.3,0.1469167]
[1732297150645,0.84534609,3294.4,3294.3,0.1469167]
[1732297151856,0.8074,3294.4,3294.3,0.1469167]
[1732297153353,1.19167,3294.4,3294.3,0.1469167]
[1732297153729,0.8074,3294.4,3294.3,0.1469167]
[1732297155039,0.84534697,3294.4,3294.3,0.1469167]
[1732297155219,3.88079697,3294.4,3294.3,0.1469167]
[1732297155868,0.84534697,3294.4,3294.3,0.1469167]
[1732297156075,0.8074,3294.4,3294.3,0.1469167]
[1732297156238,6.04433984,3295.7,3294.3,0.1469167]
[1732297156239,0.7917,3294.7,3294.3,0.1469167]
[1732297156445,0.7822,3295.3,3294.3,0.1469167]
[1732297156974,0.03794161,3295.2,3294.3,0.1469167]
[1732297157190,1.16767816,3295.1,3294.3,0.1469167]
[1732297157387,0.0379416,3295.0,3294.3,0.1469167]
[1732297159479,0.7535,3294.9,3294.3,0.1469167]
[1732297160179,0.03794643,3294.8,3294.3,0.1469167]
[1732297161145,0.7535,3294.7,3294.3,0.1469167]
[1732297161343,0.03794699,3294.6,3294.3,0.1469167]
[1732297161654,0.7713,3295.0,3294.3,0.0469167]
[1732297162058,0.03794273,3294.9,3294.3,0.0469167]
[1732297162384,0.8167,3295.3,3294.4,0.55]
[1732297162682,0.8167,3295.3,3294.3,0.0469167]
[1732297162888,0.8167,3295.3,3294.3,0.3487167]
[1732297163784,0.03793826,3295.2,3294.3,0.3487167]
[1732297164484,3.07265826,3295.2,3294.3,0.0469167]
[1732297164685,0.38893583,3295.1,3294.3,0.0469167]
[1732297164857,0.03794302,3295.0,3294.3,0.0469167]
[1732297165765,0.8167,3295.3,3294.3,0.0469167]
[1732297165766,0.03794423,3295.1,3294.3,0.0469167]
[1732297166675,2.79829988,3295.5,3294.3,0.0469167]
[1732297166676,0.03794423,3295.2,3294.3,0.0469167]
[1732297166880,0.0379442,3295.4,3294.4,0.55]
[1732297167052,0.78099572,3295.6,3294.4,0.8518]
[1732297167253,0.2387331,3295.6,3294.4,0.8518]
[1732297167680,0.0379442,3295.6,3294.4,0.8518]
[1732297167992,0.7756,3295.7,3294.4,0.88214948]
[1732297168580,0.03793685,3296.0,3294.4,0.88214948]
[1732297168765,0.03793685,3296.0,3294.7,0.8518]
[1732297168766,0.7759,3295.8,3294.7,0.8518]
[1732297168972,0.03793399,3295.7,3294.7,0.3018]
[1732297169561,0.03535511,3295.7,3294.7,0.3018]
[1732297169776,0.8315,3295.6,3294.6,0.3018]
[1732297170092,0.03535697,3295.5,3294.6,0.68698]
[1732297170260,0.03535697,3295.5,3294.6,0.3018]
[1732297170769,0.03535697,3295.5,3294.3,0.0469167]
[1732297171086,0.03535697,3295.5,3294.4,0.3018]
[1732297171087,0.7683,3295.4,3294.4,0.3018]
[1732297171286,0.03536098,3295.3,3294.4,0.3018]
[1732297171890,3.82963,3295.2,3294.4,0.3018]
[1732297172199,3.0349,3295.0,3294.4,0.3018]
[1732297172354,0.8319,3294.8,3294.3,0.0469167]
[1732297172868,0.0353673,3294.7,3294.3,0.0469167]
[1732297174297,0.39024173,3294.6,3294.3,0.0469167]
[1732297174494,0.0353673,3294.7,3294.3,0.0469167]
[1732297174495,0.03537091,3294.7,3294.3,0.0469167]
[1732297176903,0.86984979,3294.8,3294.3,0.0469167]
[1732297177198,0.8319,3294.8,3294.3,0.0469167]
[1732297177358,1.02602026,3294.8,3294.3,0.0469167]
[1732297178203,0.98807398,3294.8,3294.3,0.0469167]
[1732297178765,3.38832462,3295.6,3294.3,0.0469167]
[1732297178766,0.8327,3295.1,3294.3,0.0469167]
[1732297179167,0.03794628,3295.3,3294.3,0.0469167]
[1732297179482,0.8706421,3295.4,3294.3,0.0469167]
[1732297179790,0.8327,3295.7,3294.4,0.8518]
[1732297180001,0.8327,3295.7,3294.4,0.88214952]
[1732297180170,0.03793277,3295.6,3294.4,0.88214952]
[1732297181518,0.03793277,3295.6,3294.3,0.0469167]
[1732297181882,0.8327,3295.7,3294.4,0.55]
[1732297182114,0.8327,3295.7,3294.4,0.58035099]
[1732297182605,0.03793689,3295.6,3294.4,0.55]
[1732297185388,3.07228689,3295.6,3294.3,0.0469167]
[1732297185725,0.39049869,3295.5,3294.3,0.0469167]
[1732297186015,0.03793954,3295.4,3294.3,0.0469167]
[1732297186189,0.7915,3295.3,3294.3,0.0469167]
[1732297186392,0.03794118,3295.2,3294.3,0.0469167]
[1732297188293,0.7915,3295.3,3294.3,0.0469167]
[1732297189005,0.03794156,3295.2,3294.3,0.0469167]
[1732297189423,0.7915,3295.3,3294.3,0.0469167]
[1732297190326,0.03794157,3295.8,3294.4,0.55]
[1732297190495,3.07212157,3295.8,3294.4,0.55]
[1732297190694,0.42290373,3295.8,3294.4,0.55]
[1732297190900,0.42290373,3295.8,3294.5,0.3018]
[1732297191222,0.42290373,3295.8,3294.7,0.3018]
[1732297191223,0.7775,3295.7,3294.7,0.3018]
[1732297191425,0.03793492,3295.6,3294.7,0.3018]
[1732297191741,3.03407,3295.9,3294.7,0.3018]
[1732297191742,0.03793493,3296.0,3294.7,0.33214794]
[1732297191887,0.73381967,3296.1,3294.7,0.33214794]
[1732297192078,1.44938138,3296.3,3294.7,0.33214794]
[1732297192425,1.44938138,3296.3,3294.9,0.3018]
[1732297192426,0.21832011,3296.1,3294.9,0.3018]
[1732297192609,0.0794551,3296.3,3295.0,0.03034525]
[1732297193134,0.0794551,3296.3,3295.1,0.3018]
[1732297193345,0.0794551,3296.3,3295.7,0.3018]
[1732297194429,0.0794551,3296.3,3295.5,0.3018]
[1732297194630,0.0794551,3296.3,3295.7,0.3018]
[1732297194846,0.0794551,3296.3,3295.7,0.33213931]
[1732297195342,0.0794551,3296.3,3295.7,0.3018]
[1732297195538,0.0794551,3296.3,3295.8,0.3018]
[1732297195912,0.0794551,3296.3,3295.5,0.3018]
[1732297196432,0.0794551,3296.3,3295.0,0.58034142]
[1732297197006,0.0794551,3296.3,3295.2,0.55]
[1732297197437,0.0794551,3296.3,3295.1,0.8518]
[1732297197740,0.0794551,3296.3,3295.1,1.18501414]
[1732297201017,0.0794551,3296.3,3295.1,3.98128765]
[1732297201217,0.0794551,3296.3,3295.5,3.8518]
[1732297201464,0.0794551,3296.3,3295.6,0.0303392]
[1732297201616,0.0794551,3296.3,3295.5,3.8821392]
[1732297201815,0.0794551,3296.3,3295.7,0.3018]
[1732297202017,0.0794551,3296.3,3295.8,0.88213639]
[1732297202217,0.0794551,3296.3,3295.8,0.8518]
[1732297202443,0.0794551,3296.3,3295.9,0.03033638]
[1732297203730,0.0794551,3296.3,3295.8,3.88213329]
[1732297203952,0.0794551,3296.3,3295.1,0.37045956]
[1732297203953,0.0794551,3296.3,3296.1,0.3018]
[1732297204114,0.0794551,3296.3,3296.0,0.55]